[Event "*** SCC Grand Prix: Titled Tuesday Blitz"]
[Site "Chess.com"]
[Date "2020.08.11"]
[Round "4"]
[White "CrushingKings"]
[Black "alfiefischer77"]
[Result "1-0"]
[WhiteElo "2510"]
[BlackElo "2285"]
[TimeControl "180+1"]
[EndTime "10:40:38 PDT"]
[Termination "CrushingKings won on time"]

1. e4 {[%clk 0:03:00.9]} 1... c5 {[%clk 0:02:59.6]} 2. Nf3 {[%clk 0:02:59.6]}
2... e6 {[%clk 0:02:59.9]} 3. d4 {[%clk 0:02:58.5]} 3... cxd4 {[%clk 0:03:00.8]}
4. Nxd4 {[%clk 0:02:59.2]} 4... a6 {[%clk 0:03:01.2]} 5. Bd3 {[%clk 0:02:58.8]}
5... Nf6 {[%clk 0:03:00.6]} 6. Qe2 {[%clk 0:02:58.5]} 6... d6 {[%clk 0:03:00.4]}
7. O-O {[%clk 0:02:58.6]} 7... g6 {[%clk 0:03:00.6]} 8. Nc3 {[%clk 0:02:46.7]}
8... Bg7 {[%clk 0:03:00.2]} 9. Kh1 {[%clk 0:02:42.3]} 9... O-O {[%clk 0:03:00]}
10. f4 {[%clk 0:02:42.6]} 10... Nbd7 {[%clk 0:02:56.8]} 11. Be3 {[%clk
0:02:27.6]} 11... Qc7 {[%clk 0:02:53.1]} 12. a4 {[%clk 0:02:23.5]} 12... b6
{[%clk 0:02:51.1]} 13. f5 {[%clk 0:02:11]} 13... Ne5 {[%clk 0:02:44.7]} 14. Bg5
{[%clk 0:02:10.6]} 14... Nxd3 {[%clk 0:02:26.5]} 15. cxd3 {[%clk 0:02:11.5]}
15... Bd7 {[%clk 0:02:12.9]} 16. Rac1 {[%clk 0:02:04.3]} 16... Qb7 {[%clk
0:02:08.2]} 17. fxe6 {[%clk 0:01:58]} 17... fxe6 {[%clk 0:02:07.9]} 18. e5
{[%clk 0:01:57.6]} 18... dxe5 {[%clk 0:01:57.1]} 19. Qxe5 {[%clk 0:01:56.7]}
19... Ng4 {[%clk 0:01:35.1]} 20. Qd6 {[%clk 0:01:54.8]} 20... Be5 {[%clk
0:01:07.6]} 21. Qe7 {[%clk 0:00:45.3]} 21... Bxd4 {[%clk 0:01:01.8]} 22. Ne4
{[%clk 0:00:45.6]} 22... Bc6 {[%clk 0:00:53.1]} 23. Qxe6+ {[%clk 0:00:43.9]}
23... Kh8 {[%clk 0:00:51.4]} 24. Qxg4 {[%clk 0:00:40.3]} 24... Bxe4 {[%clk
0:00:43.4]} 25. dxe4 {[%clk 0:00:38.9]} 25... Bxb2 {[%clk 0:00:41.4]} 26. Rb1
{[%clk 0:00:36.3]} 26... Bg7 {[%clk 0:00:29.3]} 27. h4 {[%clk 0:00:18.4]} 27...
Rxf1+ {[%clk 0:00:22.7]} 28. Rxf1 {[%clk 0:00:19.3]} 28... Re8 {[%clk
0:00:21.8]} 29. Rd1 {[%clk 0:00:18.4]} 29... h6 {[%clk 0:00:17]} 30. Bf4 {[%clk
0:00:13.6]} 30... Qxe4 {[%clk 0:00:15.4]} 31. Rd7 {[%clk 0:00:14]} 31... Qe6
{[%clk 0:00:10.8]} 32. Qd1 {[%clk 0:00:12.1]} 32... b5 {[%clk 0:00:07.2]} 33. a5
{[%clk 0:00:10.5]} 33... Qe1+ {[%clk 0:00:06.6]} 34. Qxe1 {[%clk 0:00:11]} 34...
Rxe1+ {[%clk 0:00:07.3]} 35. Kh2 {[%clk 0:00:11.9]} 35... Ra1 {[%clk 0:00:05.1]}
36. Bc7 {[%clk 0:00:12.1]} 36... b4 {[%clk 0:00:04.1]} 37. Rd8+ {[%clk
0:00:10.9]} 37... Kh7 {[%clk 0:00:04.3]} 38. Rd7 {[%clk 0:00:11.6]} 38... Kg8
{[%clk 0:00:03.6]} 39. Rxg7+ {[%clk 0:00:11.5]} 39... Kxg7 {[%clk 0:00:03.1]}
40. Be5+ {[%clk 0:00:12.4]} 40... Kf7 {[%clk 0:00:03.5]} 41. Bxa1 {[%clk
0:00:13.2]} 41... Ke6 {[%clk 0:00:03.8]} 42. Kg3 {[%clk 0:00:13.3]} 42... Kd5
{[%clk 0:00:04.1]} 43. Kf4 {[%clk 0:00:13.9]} 43... Kc4 {[%clk 0:00:04.4]} 44.
Ke5 {[%clk 0:00:14.5]} 44... b3 {[%clk 0:00:03.9]} 45. Kf6 {[%clk 0:00:14.9]}
45... Kb4 {[%clk 0:00:04.2]} 46. Kxg6 {[%clk 0:00:15.2]} 46... Kxa5 {[%clk
0:00:04]} 47. Kxh6 {[%clk 0:00:15.8]} 47... Kb4 {[%clk 0:00:04.9]} 48. Kg5
{[%clk 0:00:11]} 48... a5 {[%clk 0:00:05.3]} 49. h5 {[%clk 0:00:11.7]} 49... a4
{[%clk 0:00:05.5]} 50. h6 {[%clk 0:00:12.4]} 50... a3 {[%clk 0:00:06]} 51. h7
{[%clk 0:00:11.9]} 51... b2 {[%clk 0:00:06.4]} 52. h8=Q {[%clk 0:00:10.8]} 52...
b1=Q {[%clk 0:00:06.4]} 53. Qc3+ {[%clk 0:00:11.3]} 53... Ka4 {[%clk 0:00:06.2]}
54. g3 {[%clk 0:00:11.6]} 54... Qb5+ {[%clk 0:00:04.9]} 55. Kh4 {[%clk 0:00:12]}
55... Qd7 {[%clk 0:00:02.8]} 56. g4 {[%clk 0:00:12.1]} 56... Qe7+ {[%clk
0:00:02.6]} 57. g5 {[%clk 0:00:11.6]} 57... Qh7+ {[%clk 0:00:02.6]} 58. Kg4
{[%clk 0:00:11.8]} 58... Qe4+ {[%clk 0:00:02.7]} 59. Kg3 {[%clk 0:00:12.1]}
59... Qf5 {[%clk 0:00:02.2]} 60. Qd4+ {[%clk 0:00:12]} 60... Kb3 {[%clk
0:00:02.9]} 61. Qc3+ {[%clk 0:00:12.3]} 61... Ka4 {[%clk 0:00:03.4]} 62. Qe5
{[%clk 0:00:11.9]} 62... Kb3 {[%clk 0:00:04.3]} 63. Qxf5 {[%clk 0:00:12.1]} 1-0

[Event "*** SCC Grand Prix: Titled Tuesday Blitz"]
[Site "Chess.com"]
[Date "2020.08.11"]
[Round "4"]
[White "poppy73"]
[Black "GustavoJuarezF"]
[Result "0-1"]
[WhiteElo "2242"]
[BlackElo "2027"]
[TimeControl "180+1"]
[EndTime "10:40:39 PDT"]
[Termination "GustavoJuarezF won by resignation"]

1. e4 {[%clk 0:03:00.9]} 1... c5 {[%clk 0:02:56.2]} 2. Nf3 {[%clk 0:03:00.7]}
2... Nc6 {[%clk 0:02:56.1]} 3. d4 {[%clk 0:03:01.2]} 3... cxd4 {[%clk 0:02:56]}
4. Nxd4 {[%clk 0:03:02.1]} 4... Nf6 {[%clk 0:02:56.2]} 5. Nc3 {[%clk 0:03:02.3]}
5... e5 {[%clk 0:02:56.1]} 6. Ndb5 {[%clk 0:03:01.9]} 6... d6 {[%clk 0:02:56.1]}
7. Bg5 {[%clk 0:03:00.6]} 7... a6 {[%clk 0:02:54.7]} 8. Na3 {[%clk 0:03:00.3]}
8... b5 {[%clk 0:02:54.8]} 9. Nd5 {[%clk 0:02:57.2]} 9... Be7 {[%clk 0:02:54.7]}
10. Nxe7 {[%clk 0:02:57.3]} 10... Nxe7 {[%clk 0:02:53.6]} 11. Bxf6 {[%clk
0:02:57.3]} 11... gxf6 {[%clk 0:02:53]} 12. c4 {[%clk 0:02:57.4]} 12... b4
{[%clk 0:02:49.8]} 13. Nc2 {[%clk 0:02:56.6]} 13... a5 {[%clk 0:02:48.9]} 14.
Ne3 {[%clk 0:02:51.9]} 14... f5 {[%clk 0:02:47.8]} 15. exf5 {[%clk 0:02:42.9]}
15... Nxf5 {[%clk 0:02:42.8]} 16. Nd5 {[%clk 0:02:12.6]} 16... Be6 {[%clk
0:02:28.5]} 17. Bd3 {[%clk 0:01:58]} 17... Bxd5 {[%clk 0:02:23]} 18. Bxf5 {[%clk
0:01:34.9]} 18... Bxg2 {[%clk 0:02:21.1]} 19. Rg1 {[%clk 0:01:34.9]} 19... Bc6
{[%clk 0:02:17.6]} 20. Qh5 {[%clk 0:01:24.2]} 20... Qf6 {[%clk 0:02:13.4]} 21.
O-O-O {[%clk 0:01:11.6]} 21... Ke7 {[%clk 0:02:04.8]} 22. Kb1 {[%clk 0:01:03.9]}
22... a4 {[%clk 0:01:49.3]} 23. Qg5 {[%clk 0:00:44.7]} 23... Qxg5 {[%clk
0:01:33.3]} 24. Rxg5 {[%clk 0:00:45.6]} 24... Kf6 {[%clk 0:01:26.5]} 25. Rh5
{[%clk 0:00:42.4]} 25... Rad8 {[%clk 0:01:17.9]} 26. Bc2 {[%clk 0:00:28.8]}
26... h6 {[%clk 0:01:12.5]} 27. Rg1 {[%clk 0:00:18.3]} 27... Ke7 {[%clk
0:00:53.7]} 28. b3 {[%clk 0:00:14.2]} 28... a3 {[%clk 0:00:49.9]} 29. Rg7 {[%clk
0:00:08.7]} 29... Kf6 {[%clk 0:00:42.7]} 30. Rg3 {[%clk 0:00:07.8]} 30... Ke7
{[%clk 0:00:36.5]} 31. Kc1 {[%clk 0:00:07.9]} 31... Rdf8 {[%clk 0:00:33]} 32.
Kd2 {[%clk 0:00:07.2]} 32... Bd7 {[%clk 0:00:31.9]} 33. Rf3 {[%clk 0:00:05]}
33... f6 {[%clk 0:00:29.2]} 34. Rg3 {[%clk 0:00:04.6]} 34... Be8 {[%clk
0:00:23.6]} 35. Rg7+ {[%clk 0:00:04.4]} 35... Rf7 {[%clk 0:00:23.4]} 36. Rxf7+
{[%clk 0:00:04]} 36... Bxf7 {[%clk 0:00:23]} 37. Rh3 {[%clk 0:00:03.8]} 37... h5
{[%clk 0:00:20.5]} 38. Rg3 {[%clk 0:00:03.7]} 38... h4 {[%clk 0:00:20.4]} 39.
Rg1 {[%clk 0:00:02.7]} 39... Rg8 {[%clk 0:00:19]} 40. Rxg8 {[%clk 0:00:02.1]}
40... Bxg8 {[%clk 0:00:19]} 41. Ke3 {[%clk 0:00:03]} 41... Bf7 {[%clk
0:00:17.1]} 42. f4 {[%clk 0:00:03.9]} 42... Bh5 {[%clk 0:00:15.5]} 43. fxe5
{[%clk 0:00:04.3]} 43... fxe5 {[%clk 0:00:15]} 44. Ke4 {[%clk 0:00:04.1]} 44...
Bg6+ {[%clk 0:00:14.4]} 45. Kd5 {[%clk 0:00:04]} 45... Bxc2 {[%clk 0:00:15]} 46.
Kc6 {[%clk 0:00:03.5]} 46... Bb1 {[%clk 0:00:13.8]} 47. Kb5 {[%clk 0:00:03.9]}
47... e4 {[%clk 0:00:13.9]} 48. Kxb4 {[%clk 0:00:04]} 48... e3 {[%clk
0:00:13.7]} 49. Kc3 {[%clk 0:00:03.9]} 49... Ke6 {[%clk 0:00:12]} 50. b4 {[%clk
0:00:02.8]} 50... Ke5 {[%clk 0:00:12]} 51. b5 {[%clk 0:00:02.5]} 51... Kf4
{[%clk 0:00:11]} 52. b6 {[%clk 0:00:02.7]} 52... Be4 {[%clk 0:00:10.6]} 53. b7
{[%clk 0:00:02.8]} 53... Bxb7 {[%clk 0:00:09.6]} 54. Kd3 {[%clk 0:00:03.2]}
54... Kf3 {[%clk 0:00:09.5]} 55. c5 {[%clk 0:00:03.1]} 55... dxc5 {[%clk
0:00:08.5]} 0-1

[Event "*** SCC Grand Prix: Titled Tuesday Blitz"]
[Site "Chess.com"]
[Date "2020.08.11"]
[Round "4"]
[White "GregShahade"]
[Black "TimofeevAr"]
[Result "0-1"]
[WhiteElo "2711"]
[BlackElo "2864"]
[TimeControl "180+1"]
[EndTime "10:40:40 PDT"]
[Termination "TimofeevAr won by resignation"]

1. e4 {[%clk 0:03:00.9]} 1... c5 {[%clk 0:02:59.7]} 2. Nf3 {[%clk 0:03:01.1]}
2... d6 {[%clk 0:03:00.1]} 3. d4 {[%clk 0:03:01.4]} 3... cxd4 {[%clk 0:03:00.4]}
4. Nxd4 {[%clk 0:03:02.3]} 4... Nf6 {[%clk 0:03:00.7]} 5. Nc3 {[%clk 0:03:02.6]}
5... e6 {[%clk 0:03:01.2]} 6. Be3 {[%clk 0:03:01.1]} 6... Nc6 {[%clk 0:02:59.8]}
7. f3 {[%clk 0:03:00.8]} 7... Be7 {[%clk 0:02:59.6]} 8. Qd2 {[%clk 0:03:01.2]}
8... O-O {[%clk 0:02:59.5]} 9. O-O-O {[%clk 0:03:01.7]} 9... d5 {[%clk
0:02:59.9]} 10. Be2 {[%clk 0:03:01.9]} 10... Na5 {[%clk 0:02:55.6]} 11. exd5
{[%clk 0:02:35.3]} 11... Nxd5 {[%clk 0:02:43.9]} 12. Nxd5 {[%clk 0:02:34]} 12...
Qxd5 {[%clk 0:02:41.4]} 13. Nb3 {[%clk 0:02:30.3]} 13... Qxd2+ {[%clk
0:02:18.5]} 14. Rxd2 {[%clk 0:02:27.5]} 14... Nc6 {[%clk 0:02:12.8]} 15. Rhd1
{[%clk 0:02:24]} 15... Rd8 {[%clk 0:02:02.3]} 16. Rxd8+ {[%clk 0:02:17.1]} 16...
Nxd8 {[%clk 0:01:58.5]} 17. f4 {[%clk 0:02:14.4]} 17... Kf8 {[%clk 0:01:54.9]}
18. Bf3 {[%clk 0:01:49.5]} 18... Ke8 {[%clk 0:01:51.5]} 19. a3 {[%clk
0:01:35.2]} 19... Bd7 {[%clk 0:01:45.2]} 20. Na5 {[%clk 0:01:29.7]} 20... Bc6
{[%clk 0:01:44.5]} 21. Bxc6+ {[%clk 0:01:16.3]} 21... bxc6 {[%clk 0:01:43.1]}
22. b4 {[%clk 0:01:14.1]} 22... a6 {[%clk 0:01:35.5]} 23. c4 {[%clk 0:01:12.8]}
23... c5 {[%clk 0:01:16.4]} 24. bxc5 {[%clk 0:01:11.6]} 24... Rc8 {[%clk
0:01:15.6]} 25. Kc2 {[%clk 0:01:08.1]} 25... e5 {[%clk 0:01:08.4]} 26. fxe5
{[%clk 0:01:03.1]} 26... Ne6 {[%clk 0:01:08.5]} 27. c6 {[%clk 0:01:01.7]} 27...
Bxa3 {[%clk 0:01:07.7]} 28. Kb3 {[%clk 0:00:46.5]} 28... Be7 {[%clk 0:01:06.8]}
29. Rd7 {[%clk 0:00:44.6]} 29... Bd8 {[%clk 0:01:06.2]} 30. Nb7 {[%clk
0:00:29.1]} 30... Rxc6 {[%clk 0:01:05.7]} 31. Rd1 {[%clk 0:00:19.2]} 31... Bc7
{[%clk 0:01:02.4]} 32. Nd6+ {[%clk 0:00:18.2]} 32... Bxd6 {[%clk 0:01:02.6]} 33.
Rxd6 {[%clk 0:00:16.3]} 33... Rxd6 {[%clk 0:00:59.8]} 34. exd6 {[%clk
0:00:17.2]} 34... Kd7 {[%clk 0:01:00.3]} 35. c5 {[%clk 0:00:17.8]} 35... Kc6
{[%clk 0:01:00.7]} 36. Kc4 {[%clk 0:00:18.1]} 36... f5 {[%clk 0:01:00.6]} 37. g3
{[%clk 0:00:17.5]} 37... g5 {[%clk 0:01:00.5]} 38. Bd2 {[%clk 0:00:16.8]} 38...
f4 {[%clk 0:00:59.1]} 39. gxf4 {[%clk 0:00:17.7]} 39... gxf4 {[%clk 0:00:59.4]}
40. Be1 {[%clk 0:00:15.7]} 40... Nxc5 {[%clk 0:00:57.5]} 41. Bd2 {[%clk
0:00:14.3]} 41... Ne6 {[%clk 0:00:57.5]} 42. Bb4 {[%clk 0:00:14.6]} 42... f3
{[%clk 0:00:57.2]} 43. Be1 {[%clk 0:00:15]} 43... Kxd6 {[%clk 0:00:57.1]} 44.
Kd3 {[%clk 0:00:15.8]} 44... Kd5 {[%clk 0:00:56.4]} 45. Ke3 {[%clk 0:00:16.1]}
45... Nd4 {[%clk 0:00:56.5]} 46. Bc3 {[%clk 0:00:15.7]} 46... Nb5 {[%clk
0:00:55.7]} 47. Be1 {[%clk 0:00:15.8]} 47... Nd6 {[%clk 0:00:45.3]} 48. Kxf3
{[%clk 0:00:15.5]} 48... Nc4 {[%clk 0:00:40.6]} 49. Kg4 {[%clk 0:00:14.9]} 49...
Ke6 {[%clk 0:00:40.7]} 50. Kg5 {[%clk 0:00:14.9]} 50... Kf7 {[%clk 0:00:40.7]}
51. Kh6 {[%clk 0:00:15.5]} 51... Kg8 {[%clk 0:00:40.9]} 52. h4 {[%clk
0:00:16.1]} 52... a5 {[%clk 0:00:41.2]} 53. Bc3 {[%clk 0:00:14.4]} 53... a4
{[%clk 0:00:41.5]} 54. h5 {[%clk 0:00:14.7]} 54... a3 {[%clk 0:00:41.8]} 55. Kg5
{[%clk 0:00:14.8]} 55... a2 {[%clk 0:00:41.7]} 56. Kf5 {[%clk 0:00:13.7]} 56...
Na3 {[%clk 0:00:41.4]} 57. h6 {[%clk 0:00:13.5]} 57... Nc2 {[%clk 0:00:41.2]}
58. Ke6 {[%clk 0:00:12.3]} 58... Kf8 {[%clk 0:00:35.4]} 59. Kf6 {[%clk
0:00:06.7]} 59... a1=Q {[%clk 0:00:33.9]} 60. Bxa1 {[%clk 0:00:07.3]} 60... Nxa1
{[%clk 0:00:34.2]} 61. Kf5 {[%clk 0:00:07.9]} 61... Nc2 {[%clk 0:00:34]} 62. Kg5
{[%clk 0:00:08.8]} 62... Nd4 {[%clk 0:00:33.5]} 63. Kh5 {[%clk 0:00:09]} 63...
Kf7 {[%clk 0:00:33.3]} 64. Kg5 {[%clk 0:00:09.9]} 64... Ke6 {[%clk 0:00:33.3]}
65. Kh5 {[%clk 0:00:10.8]} 65... Kf5 {[%clk 0:00:33.2]} 66. Kh4 {[%clk
0:00:11.7]} 66... Kg6 {[%clk 0:00:33.6]} 67. Kg3 {[%clk 0:00:12.6]} 67... Kxh6
{[%clk 0:00:33.9]} 68. Kh4 {[%clk 0:00:13.5]} 68... Nc6 {[%clk 0:00:34.1]} 69.
Kg3 {[%clk 0:00:14.4]} 69... Kg6 {[%clk 0:00:34.6]} 70. Kh3 {[%clk 0:00:15.3]}
70... h5 {[%clk 0:00:34.8]} 71. Kg3 {[%clk 0:00:16.2]} 71... Kg5 {[%clk
0:00:35.1]} 72. Kh3 {[%clk 0:00:17.1]} 72... Ne5 {[%clk 0:00:35.3]} 73. Kg2
{[%clk 0:00:18]} 73... h4 {[%clk 0:00:35.6]} 74. Kh2 {[%clk 0:00:18.9]} 74...
Kg4 {[%clk 0:00:35.9]} 75. Kg2 {[%clk 0:00:19.8]} 75... Nd3 {[%clk 0:00:36.2]}
76. Kh1 {[%clk 0:00:20.7]} 76... Nf4 {[%clk 0:00:35.4]} 77. Kh2 {[%clk 0:00:21]}
77... h3 {[%clk 0:00:35.3]} 78. Kh1 {[%clk 0:00:21.9]} 78... Kg3 {[%clk
0:00:35.7]} 79. Kg1 {[%clk 0:00:22.3]} 79... Nd3 {[%clk 0:00:36]} 80. Kh1 {[%clk
0:00:23.2]} 80... Nf2+ {[%clk 0:00:36.3]} 81. Kg1 {[%clk 0:00:24.1]} 81... h2+
{[%clk 0:00:36.9]} 82. Kf1 {[%clk 0:00:25]} 82... h1=Q+ {[%clk 0:00:37.3]} 0-1

[Event "*** SCC Grand Prix: Titled Tuesday Blitz"]
[Site "Chess.com"]
[Date "2020.08.11"]
[Round "4"]
[White "Bastiandash"]
[Black "Alexandr_Kholin"]
[Result "0-1"]
[WhiteElo "2299"]
[BlackElo "2515"]
[TimeControl "180+1"]
[EndTime "10:40:40 PDT"]
[Termination "Alexandr_Kholin won on time"]

1. d4 {[%clk 0:03:00.9]} 1... d5 {[%clk 0:02:57.9]} 2. Nf3 {[%clk 0:03:01.8]}
2... e6 {[%clk 0:02:57.4]} 3. Bg5 {[%clk 0:03:00.7]} 3... Be7 {[%clk 0:02:56.5]}
4. Bxe7 {[%clk 0:03:00.2]} 4... Qxe7 {[%clk 0:02:57.2]} 5. e3 {[%clk 0:03:01.1]}
5... Nf6 {[%clk 0:02:56.5]} 6. Bd3 {[%clk 0:03:02]} 6... Qb4+ {[%clk 0:02:54.9]}
7. Nbd2 {[%clk 0:02:41.9]} 7... Qxb2 {[%clk 0:02:53.6]} 8. O-O {[%clk
0:02:37.6]} 8... O-O {[%clk 0:02:51.8]} 9. Ne5 {[%clk 0:02:37.1]} 9... c5 {[%clk
0:02:47.7]} 10. c3 {[%clk 0:02:15.5]} 10... Nc6 {[%clk 0:02:40.4]} 11. f4 {[%clk
0:01:55.1]} 11... Qxc3 {[%clk 0:02:36.7]} 12. Rc1 {[%clk 0:01:53.2]} 12... Qa3
{[%clk 0:02:34.5]} 13. Nb1 {[%clk 0:01:41.2]} 13... Qxa2 {[%clk 0:02:31.1]} 14.
Rxc5 {[%clk 0:01:31.2]} 14... Nxe5 {[%clk 0:02:19.4]} 15. fxe5 {[%clk
0:01:26.7]} 15... Ne4 {[%clk 0:02:19.7]} 16. Bxe4 {[%clk 0:01:20]} 16... dxe4
{[%clk 0:02:18.3]} 17. Nc3 {[%clk 0:01:17.8]} 17... Qa3 {[%clk 0:02:18]} 18. Qd2
{[%clk 0:00:52.4]} 18... Bd7 {[%clk 0:01:50.7]} 19. Nxe4 {[%clk 0:00:47.3]}
19... Bc6 {[%clk 0:01:45.3]} 20. Nd6 {[%clk 0:00:40.3]} 20... a5 {[%clk
0:01:24.9]} 21. e4 {[%clk 0:00:16.7]} 21... a4 {[%clk 0:01:08.9]} 22. Rb1 {[%clk
0:00:05.6]} 22... Bxe4 {[%clk 0:00:28.6]} 23. Nxe4 {[%clk 0:00:02.4]} 23... Rac8
{[%clk 0:00:27.2]} 24. Rxc8 {[%clk 0:00:01.9]} 24... Rxc8 {[%clk 0:00:25.9]} 25.
Qb2 {[%clk 0:00:02.1]} 25... Qe3+ {[%clk 0:00:19.9]} 26. Nf2 {[%clk 0:00:02.5]}
26... a3 {[%clk 0:00:19.5]} 27. Qa2 {[%clk 0:00:02.9]} 27... h6 {[%clk
0:00:17.3]} 28. g3 {[%clk 0:00:02.9]} 28... Rc3 {[%clk 0:00:15.1]} 29. Kg2
{[%clk 0:00:03.1]} 29... b5 {[%clk 0:00:14.4]} 30. Rxb5 {[%clk 0:00:02.7]} 30...
Qxd4 {[%clk 0:00:14.2]} 31. Rb8+ {[%clk 0:00:02.5]} 31... Kh7 {[%clk 0:00:14.2]}
32. Qb1+ {[%clk 0:00:03.4]} 32... g6 {[%clk 0:00:14.5]} 33. Rb3 {[%clk
0:00:04.2]} 33... Qd5+ {[%clk 0:00:13.7]} 34. Ne4 {[%clk 0:00:02.7]} 34... Qxb3
{[%clk 0:00:13.5]} 35. Nf6+ {[%clk 0:00:03.1]} 35... Kg7 {[%clk 0:00:13.2]} 36.
Qe1 {[%clk 0:00:03.7]} 36... Qc2+ {[%clk 0:00:13.3]} 37. Kh3 {[%clk 0:00:04.6]}
37... Qf5+ {[%clk 0:00:12.6]} 38. Kg2 {[%clk 0:00:05]} 38... Rc2+ {[%clk
0:00:13]} 39. Kg1 {[%clk 0:00:05.4]} 39... Qf3 {[%clk 0:00:10.7]} 40. Ne8+
{[%clk 0:00:04.9]} 40... Kf8 {[%clk 0:00:10.8]} 41. Qb4+ {[%clk 0:00:04.1]}
41... Kxe8 {[%clk 0:00:09.9]} 42. Qa4+ {[%clk 0:00:03.4]} 42... Kf8 {[%clk
0:00:09.7]} 43. Qxc2 {[%clk 0:00:03.8]} 43... Qe3+ {[%clk 0:00:09.4]} 44. Kg2
{[%clk 0:00:03.7]} 44... Kg7 {[%clk 0:00:09.1]} 45. Qa2 {[%clk 0:00:03.3]} 45...
Qe4+ {[%clk 0:00:08.2]} 46. Kh3 {[%clk 0:00:03.4]} 46... Qf5+ {[%clk 0:00:07.7]}
47. Kg2 {[%clk 0:00:03.6]} 47... Qe4+ {[%clk 0:00:07.9]} 48. Kh3 {[%clk
0:00:03.8]} 48... Qb4 {[%clk 0:00:08.8]} 49. Qf2 {[%clk 0:00:03.4]} 49... Qb7
{[%clk 0:00:05.5]} 50. Qf6+ {[%clk 0:00:03.4]} 50... Kh7 {[%clk 0:00:06]} 51.
Qf2 {[%clk 0:00:02.5]} 51... Qa7 {[%clk 0:00:06.4]} 52. Qa2 {[%clk 0:00:02.2]}
52... Qa4 {[%clk 0:00:07]} 53. Kg2 {[%clk 0:00:02.3]} 53... g5 {[%clk
0:00:07.4]} 54. h3 {[%clk 0:00:02.4]} 54... Qe4+ {[%clk 0:00:06.5]} 55. Kh2
{[%clk 0:00:02.6]} 55... Qb4 {[%clk 0:00:06]} 56. Qf2 {[%clk 0:00:01.5]} 56...
Qb2 {[%clk 0:00:06.9]} 0-1

[Event "*** SCC Grand Prix: Titled Tuesday Blitz"]
[Site "Chess.com"]
[Date "2020.08.11"]
[Round "4"]
[White "Man-Chuk"]
[Black "1977Ivan"]
[Result "1-0"]
[WhiteElo "2842"]
[BlackElo "2669"]
[TimeControl "180+1"]
[EndTime "10:40:44 PDT"]
[Termination "Man-Chuk won on time"]

1. d4 {[%clk 0:03:00.9]} 1... Nf6 {[%clk 0:02:59.2]} 2. c4 {[%clk 0:03:01.4]}
2... c5 {[%clk 0:02:59.8]} 3. d5 {[%clk 0:03:00.8]} 3... g6 {[%clk 0:03:00.3]}
4. Nc3 {[%clk 0:03:00.4]} 4... Bg7 {[%clk 0:03:00.9]} 5. e4 {[%clk 0:03:00.6]}
5... O-O {[%clk 0:03:01.5]} 6. Nf3 {[%clk 0:02:59.8]} 6... e6 {[%clk 0:03:01.7]}
7. Bd3 {[%clk 0:02:54.7]} 7... exd5 {[%clk 0:03:01.4]} 8. cxd5 {[%clk
0:02:55.6]} 8... d6 {[%clk 0:03:01.5]} 9. O-O {[%clk 0:02:52.7]} 9... Bg4 {[%clk
0:03:00]} 10. h3 {[%clk 0:02:50.2]} 10... Bxf3 {[%clk 0:02:59.5]} 11. Qxf3
{[%clk 0:02:51.1]} 11... a6 {[%clk 0:02:59.7]} 12. Bf4 {[%clk 0:02:47.7]} 12...
b5 {[%clk 0:02:53.2]} 13. a4 {[%clk 0:02:39]} 13... c4 {[%clk 0:02:37.9]} 14.
Be2 {[%clk 0:02:16.6]} 14... b4 {[%clk 0:02:30.2]} 15. Nd1 {[%clk 0:02:16.6]}
15... Re8 {[%clk 0:02:27.6]} 16. Rc1 {[%clk 0:02:03.1]} 16... Nxe4 {[%clk
0:01:41.5]} 17. Rxc4 {[%clk 0:02:01.2]} 17... f5 {[%clk 0:01:29.9]} 18. Rxb4
{[%clk 0:01:56.8]} 18... Nd7 {[%clk 0:01:30.3]} 19. Nc3 {[%clk 0:01:38.4]} 19...
Nxc3 {[%clk 0:01:05.2]} 20. bxc3 {[%clk 0:01:38.1]} 20... Nc5 {[%clk 0:01:02.6]}
21. Rfb1 {[%clk 0:01:17.3]} 21... Ne4 {[%clk 0:00:54]} 22. Rb7 {[%clk
0:01:10.1]} 22... Qf6 {[%clk 0:00:35.4]} 23. R1b6 {[%clk 0:00:39.5]} 23... Qxc3
{[%clk 0:00:18.5]} 24. Qxc3 {[%clk 0:00:33.1]} 24... Nxc3 {[%clk 0:00:19.4]} 25.
Bd3 {[%clk 0:00:26.3]} 25... Bd4 {[%clk 0:00:18.2]} 26. Rxd6 {[%clk 0:00:22]}
26... Re1+ {[%clk 0:00:17.4]} 27. Kh2 {[%clk 0:00:22.4]} 27... Bxf2 {[%clk
0:00:16.7]} 28. Rdd7 {[%clk 0:00:17.1]} 28... Bg1+ {[%clk 0:00:13.4]} 29. Kg3
{[%clk 0:00:17.1]} 29... Bd4 {[%clk 0:00:13.4]} 30. d6 {[%clk 0:00:14.4]} 30...
Ne4+ {[%clk 0:00:11.8]} 31. Bxe4 {[%clk 0:00:12.4]} 31... Rxe4 {[%clk
0:00:10.8]} 32. Rdc7 {[%clk 0:00:09.1]} 32... g5 {[%clk 0:00:09.6]} 33. Bxg5
{[%clk 0:00:07.3]} 33... Be5+ {[%clk 0:00:09.4]} 34. Kf3 {[%clk 0:00:07.3]}
34... Bxd6 {[%clk 0:00:09.5]} 35. Rg7+ {[%clk 0:00:07.3]} 35... Kf8 {[%clk
0:00:08.9]} 36. Rxh7 {[%clk 0:00:05.6]} 36... Be5 {[%clk 0:00:08.9]} 37. Rhf7+
{[%clk 0:00:04.1]} 37... Kg8 {[%clk 0:00:09]} 38. Rxf5 {[%clk 0:00:05]} 38...
Re1 {[%clk 0:00:08.3]} 39. Bd2 {[%clk 0:00:03.2]} 39... Rd1 {[%clk 0:00:04.9]}
40. Rxe5 {[%clk 0:00:03]} 40... Rxd2 {[%clk 0:00:04.5]} 41. Rg5+ {[%clk
0:00:03.9]} 41... Kh8 {[%clk 0:00:04.1]} 42. Rh5+ {[%clk 0:00:04.2]} 42... Kg8
{[%clk 0:00:03.7]} 43. Rhh7 {[%clk 0:00:05.1]} 43... Rd3+ {[%clk 0:00:03.8]} 44.
Kg4 {[%clk 0:00:04.9]} 44... Ra3 {[%clk 0:00:04.4]} 45. Rbg7+ {[%clk 0:00:04]}
45... Kf8 {[%clk 0:00:03.9]} 46. Rc7 {[%clk 0:00:04.9]} 46... Kg8 {[%clk
0:00:03.6]} 47. Kh5 {[%clk 0:00:05]} 47... Rxa4 {[%clk 0:00:03.2]} 48. g4 {[%clk
0:00:05.5]} 48... Ra3 {[%clk 0:00:02.6]} 49. h4 {[%clk 0:00:05.3]} 49... Rd3
{[%clk 0:00:01.7]} 50. Rcg7+ {[%clk 0:00:05.2]} 1-0